bitfinex-derivatives/quotes_ETHF0:USTF0_20250709
["timestamp","ask_amount","ask_price","bid_price","bid_amount"]
[1752066451880,0.75085,2663.3,2662.9,4.31289795]
[1752066452081,6.06551,2663.9,2663.2,5.82408718]
[1752066452276,0.75082,2663.4,2663.2,6.57494718]
[1752066452671,0.75078,2663.6,2663.2,6.74358718]
[1752066452878,4.1888,2663.9,2663.5,3.36705718]
[1752066453076,0.7508,2663.5,2663.3,1.307]
[1752066453277,0.75077,2663.6,2663.4,3.36708718]
[1752066453682,0.75078,2663.5,2663.4,3.36708718]
[1752066453984,0.75078,2663.5,2663.4,2.61628718]
[1752066454879,0.981,2663.7,2663.2,3.2078]
[1752066455079,0.75083,2663.4,2663.3,2.61628718]
[1752066455283,0.75083,2663.4,2663.3,3.36712718]
[1752066456283,0.75083,2663.4,2663.3,2.61628718]
[1752066456682,0.75083,2663.4,2663.3,0.75084]
[1752066456986,0.75084,2663.3,2663.2,3.95865]
[1752066457284,0.75083,2663.4,2663.3,0.75084]
[1752066457477,1.2695,2663.7,2663.4,0.75079]
[1752066457673,1.9338,2663.7,2663.3,0.75082]
[1752066457979,0.75081,2663.4,2663.3,0.75082]
[1752066458180,0.75081,2663.4,2663.3,3.36710718]
[1752066458477,0.75077,2663.6,2663.5,0.75076]
[1752066458684,0.75074,2663.7,2663.6,0.75075]
[1752066458883,0.75074,2663.7,2663.6,1.37995]
[1752066459084,0.0056224,2664.0,2663.6,1.5487]
[1752066459274,0.0056224,2664.0,2663.8,2.61628718]
[1752066459275,0.75067,2663.9,2663.8,2.61628718]
[1752066459582,0.75067,2663.9,2663.8,3.24548718]
[1752066459781,0.0056224,2664.0,2663.9,0.75067]
[1752066459979,0.0056224,2664.0,2663.9,1.5487]
[1752066460179,0.75067,2663.9,2663.8,3.2078]
[1752066460380,0.75067,2663.9,2663.6,0.669]
[1752066460381,0.75073,2663.7,2663.6,0.669]
[1752066460684,1.41503,2663.7,2663.6,0.6292]
[1752066461684,0.75078,2663.5,2663.4,2.61628718]
[1752066462086,0.75078,2663.5,2663.4,3.24548718]
[1752066462383,0.75078,2663.5,2663.4,3.99629718]
[1752066462784,0.75077,2663.6,2663.5,0.75076]
[1752066462984,0.75077,2663.6,2663.5,1.37996]
[1752066464684,0.75077,2663.6,2663.5,0.6292]
[1752066464887,0.75078,2663.5,2663.4,2.61628718]
[1752066465083,1.41508,2663.5,2663.4,2.61628718]
[1752066465388,1.41508,2663.5,2663.4,3.24548718]
[1752066465587,1.41508,2663.5,2663.4,2.61628718]
[1752066465787,0.75078,2663.5,2663.4,3.99629718]
[1752066465986,0.75078,2663.6,2663.5,0.75076]
[1752066466197,0.75078,2663.5,2663.4,2.61628718]
[1752066466588,0.75077,2663.6,2663.5,0.75076]
[1752066466893,0.75077,2663.6,2663.5,3.837]
[1752066467190,1.41507,2663.6,2663.5,3.837]
[1752066468092,1.41507,2663.6,2663.5,0.6292]
[1752066468292,2.39607,2663.6,2663.5,0.6292]
[1752066469092,0.75078,2663.5,2663.4,2.61628718]
[1752066469292,2.75378,2663.5,2663.4,2.61628718]
[1752066469687,0.75084,2663.3,2663.2,3.2078]
[1752066469886,1.41514,2663.3,2663.2,3.2078]
[1752066470285,1.41514,2663.3,2663.2,0.6292]
[1752066471889,0.75092,2663.0,2662.9,0.81289795]
[1752066472089,1.42652,2663.0,2662.9,0.18559795]
[1752066472288,2.83266957,2663.0,2662.9,0.82939795]
[1752066472484,4.17126957,2663.0,2662.9,0.82939795]
[1752066472688,4.17126957,2663.0,2662.9,0.18559795]
[1752066472893,4.17126957,2663.0,2662.9,0.82939795]
[1752066474494,4.17126957,2663.0,2662.5,0.75103]
[1752066474495,0.75106,2662.6,2662.5,0.75103]
[1752066474694,0.75106,2662.6,2662.5,1.39483]
[1752066475091,0.75106,2662.5,2662.4,28.00607]
[1752066475400,0.75103,2662.7,2662.6,0.75101]
[1752066475692,2.16063696,2662.7,2662.6,7.21889718]
[1752066476084,0.75097,2662.9,2662.6,12.39008718]
[1752066476284,0.75097,2662.9,2662.8,0.75095]
[1752066476485,0.75097,2662.9,2662.8,27.2178]
[1752066476691,2.16088122,2662.9,2662.8,27.96878]
[1752066477188,1.40991122,2662.9,2662.8,33.89098]
[1752066477389,1.40991122,2662.9,2662.8,27.96878]
[1752066477591,0.75095,2662.9,2662.8,27.96878]
[1752066478297,0.75095,2662.9,2662.8,1.39478]
[1752066478497,0.751,2662.8,2662.7,0.75099]
[1752066478696,0.75101,2662.7,2662.6,6.57509718]
[1752066478898,1.42661,2662.7,2662.6,31.15461]
[1752066479100,0.75101,2662.7,2662.6,31.15461]
[1752066479697,0.75101,2662.8,2662.7,0.75099]
[1752066479995,0.75101,2662.8,2662.7,1.39479]
[1752066480195,1.2608,2663.3,2662.8,0.75095]
[1752066480398,0.75089,2663.1,2663.0,2.61628718]
[1752066480594,2.16244558,2663.1,2663.0,4.01100718]
[1752066480897,2.16244558,2663.1,2663.0,6.57500718]
[1752066481093,2.16244558,2663.1,2663.0,7.21880718]
[1752066481300,2.16244558,2663.1,2663.0,7.87990718]
[1752066481503,2.16244558,2663.1,2663.0,3.8689]
[1752066481703,2.16244558,2663.1,2663.0,4.61982]
[1752066481896,2.16244558,2663.1,2663.0,5.26362]
[1752066482500,2.16244558,2663.1,2663.0,4.5127]
[1752066483095,2.83804558,2663.1,2663.0,4.5127]
[1752066483297,0.75098,2662.8,2662.7,3.2078]
[1752066483499,1.42658,2662.8,2662.7,30.3696]
[1752066483802,1.42658,2662.8,2662.7,3.8516]
[1752066484104,1.42658,2662.8,2662.7,30.3646]
[1752066484304,1.42658,2662.8,2662.7,4.60261]
[1752066484492,0.75098,2662.8,2662.7,31.11561]
[1752066484696,0.75098,2662.8,2662.7,3.8516]
[1752066484896,1.42658,2662.8,2662.7,3.8516]
[1752066485100,0.75106,2662.5,2662.4,3.2078]
[1752066485303,0.75115,2662.2,2662.1,5.82408718]
[1752066485498,0.75115,2662.2,2662.1,32.99088718]
[1752066485702,0.75115,2662.2,2662.1,6.46788718]
[1752066485897,0.75115,2662.2,2662.1,32.99188718]
[1752066486496,0.75115,2662.2,2662.1,33.74306718]
[1752066486701,0.75114,2662.3,2662.2,0.75112]
[1752066486903,0.75115,2662.2,2662.1,6.57523718]
[1752066487107,0.75115,2662.2,2662.1,33.09623718]
[1752066487402,1.42675,2662.2,2662.1,6.57523718]
[1752066487601,1.42675,2662.2,2662.1,5.82408718]
[1752066487799,1.42675,2662.2,2662.1,32.34308718]
[1752066488005,1.42675,2662.2,2662.1,32.98688718]
[1752066488902,1.42675,2662.2,2662.1,6.46788718]
[1752066489203,1.42675,2662.2,2661.9,0.681]
[1752066489204,0.75123,2661.9,2661.8,3.51326716]
[1752066489403,1.42683,2661.9,2661.8,3.8516]
[1752066489805,1.42683,2661.9,2661.8,3.2078]
[1752066490004,1.42683,2661.9,2661.8,3.8516]
[1752066490697,1.42683,2661.9,2661.8,30.3586]
[1752066490897,1.42683,2661.9,2661.8,0.6438]
[1752066491105,0.7512,2662.1,2662.0,0.75119]
[1752066491296,2.90539306,2662.4,2662.1,0.75116]
[1752066491297,0.75116,2662.2,2662.1,0.75116]
[1752066491501,0.75116,2662.2,2662.1,4.01124718]
[1752066491698,1.42676,2662.2,2662.1,3.26008718]
[1752066492901,1.30973306,2662.4,2662.3,0.75112]
[1752066493110,0.75674306,2662.4,2662.3,1.39492]
[1752066493509,0.00563306,2662.4,2662.3,1.39492]
[1752066493810,0.00563306,2662.4,2662.3,0.6438]
[1752066493811,1.43232306,2662.4,2662.3,0.6438]
[1752066494006,0.00563306,2662.4,2662.3,2.31712]
[1752066494206,1.8772,2663.2,2662.5,1.87765]
[1752066494412,0.75097,2662.9,2662.8,3.36724718]
[1752066494610,3.2078,2663.3,2662.8,3.26008718]
[1752066494811,3.44041128,2663.2,2663.1,2.61628718]
[1752066495003,4.11601128,2663.2,2663.1,3.26008718]
[1752066496211,4.11601128,2663.2,2663.1,0.6438]
[1752066496618,2.69976,2663.2,2663.1,0.6438]
[1752066497522,4.2298,2663.9,2663.1,1.566]
[1752066497712,0.7508,2663.5,2663.4,3.36707718]
[1752066497911,1.4264,2663.5,2663.4,3.36707718]
[1752066498115,0.6756,2663.5,2663.4,3.36707718]
[1752066498320,0.6756,2663.5,2663.4,4.01087718]
[1752066498524,1.42638,2663.5,2663.4,4.01087718]
[1752066498719,0.75078,2663.5,2663.4,4.01087718]
[1752066498920,0.75074,2663.7,2663.6,0.75075]
[1752066499117,1.42634,2663.7,2663.6,31.08635]
[1752066499319,1.42634,2663.7,2663.6,29.6918]
[1752066499621,1.42634,2663.7,2663.6,26.484]
[1752066499818,0.75081,2663.4,2663.3,3.2078]
[1752066500120,1.42641,2663.4,2663.3,3.8516]
[1752066503813,1.3146,2663.6,2663.3,3.8516]
[1752066504012,0.622,2664.0,2663.3,3.8516]
[1752066504013,0.622,2664.0,2663.5,2.61628718]
[1752066504218,1.37264,2664.0,2663.9,2.61628718]
[1752066504419,2.00404,2664.0,2663.9,2.61628718]
[1752066504714,1.38204,2664.0,2663.9,2.61628718]
[1752066504918,0.9987,2664.4,2663.9,29.6638]
[1752066505219,0.75062,2664.1,2664.0,29.08228718]
[1752066506025,0.6314,2664.1,2664.0,29.08228718]
[1752066506221,0.6314,2664.1,2664.0,29.83291718]
[1752066506624,0.6314,2664.1,2664.0,30.47061718]
[1752066507018,0.6314,2664.1,2664.0,35.47061718]
[1752066507224,1.38201,2664.1,2664.0,0.6377]
[1752066507420,0.75061,2664.1,2664.0,27.84134]
[1752066507619,1.38201,2664.1,2664.0,0.6382]
[1752066507814,0.6314,2664.1,2663.9,26.451]
[1752066508017,1.2762,2664.0,2663.6,6.46178718]
[1752066508318,1.9615,2664.0,2663.9,3.25448718]
[1752066508515,0.9987,2664.5,2664.0,1.87661]
[1752066508717,0.9987,2664.5,2664.4,3.36681718]
[1752066508920,1.7492,2664.5,2664.4,3.36681718]
[1752066509128,2.0164,2664.7,2664.6,0.75047]
[1752066509322,1.9668,2664.7,2664.6,0.75047]
[1752066509722,2.71724,2664.7,2664.6,0.75047]
[1752066510127,0.6314,2664.7,2664.6,0.75047]
[1752066510428,0.75045,2664.7,2664.6,0.75046]
[1752066510629,0.75044,2664.7,2664.6,0.75044]
[1752066510923,0.75048,2664.6,2664.5,0.75048]
[1752066511124,3.0151,2665.0,2664.5,3.2078]
[1752066511324,2.3341,2665.0,2664.9,3.36667718]
[1752066511523,4.2065,2665.5,2664.9,29.05828718]
[1752066511723,0.75033,2665.1,2665.0,0.75034]
[1752066511923,0.6314,2665.1,2665.0,0.75034]
[1752066512323,0.9987,2665.8,2665.0,5.0]
[1752066512527,1.87548,2665.6,2665.1,3.8335]
[1752066512725,0.75044,2664.7,2664.6,3.2078]
[1752066513430,5.0,2664.7,2663.8,0.75069]
[1752066513630,0.75067,2663.9,2663.8,0.7507]
[1752066513825,1.87657,2664.1,2663.6,0.9357]
[1752066514030,0.75068,2663.9,2663.8,0.7507]
[1752066514334,0.7507,2663.8,2663.7,0.75072]
[1752066514530,0.6589,2664.3,2663.7,4.1435]
[1752066514731,0.75066,2664.0,2663.8,0.75067]
[1752066515028,0.7507,2663.8,2663.7,29.7188]
[1752066515230,0.75072,2663.7,2663.6,4.48128001]
[1752066515432,3.07442,2663.7,2663.6,0.00563306]
[1752066517531,2.07572,2663.7,2663.6,0.00563306]
[1752066517730,2.07572,2663.7,2663.6,2.62192024]
[1752066518033,1.325,2663.7,2663.6,3.37267024]
[1752066518233,2.07572,2663.7,2663.6,2.62192024]
[1752066518432,0.75068,2663.9,2663.7,0.75072]
[1752066518832,1.2578,2664.1,2663.9,0.75066]
[1752066519129,0.75065,2664.0,2663.9,0.75066]
[1752066519332,0.75065,2664.0,2663.8,0.75068]
[1752066519533,1.2578,2664.1,2663.8,0.75068]
[1752066519834,0.75067,2663.9,2663.8,0.75068]
[1752066520232,1.2578,2664.1,2663.9,0.75065]
[1752066520431,0.75064,2664.0,2663.9,0.75067]
[1752066520632,0.7507,2663.8,2663.7,3.2078]
[1752066520836,0.75072,2663.7,2663.6,2.62192024]
[1752066521029,2.02242,2663.7,2663.6,0.00563306]
[1752066521226,2.02242,2663.7,2663.6,0.75638306]
[1752066521429,3.2078,2664.2,2663.6,2.62192024]
[1752066521730,0.75067,2663.9,2663.8,0.75069]
[1752066521926,1.2717,2664.2,2663.9,0.75065]
[1752066522231,1.2717,2664.2,2663.9,2.61628718]
[1752066522636,1.2717,2664.2,2664.1,0.75061]
[1752066523039,1.40946,2664.3,2664.2,0.75058]
[1752066523736,0.6589,2664.3,2664.2,0.75058]
[1752066524336,0.6589,2664.3,2664.2,3.36686718]
[1752066524536,0.75056,2664.3,2664.2,3.36686718]
[1752066525234,0.75041,2664.9,2664.8,0.7504]
[1752066525429,1.40241351,2665.0,2664.6,5.82408718]
[1752066525634,1.3546,2664.8,2664.6,5.82408718]
[1752066525833,3.27855351,2664.7,2664.3,6.48538718]
[1752066526031,0.75053,2664.4,2664.3,3.2078]
[1752066526636,0.75056,2664.3,2664.2,0.75057]
[1752066526837,2.09106,2664.3,2664.2,0.75057]
[1752066527238,2.09106,2664.3,2664.1,29.86187718]
[1752066527239,0.75058,2664.2,2664.1,29.86187718]
[1752066527439,2.09108,2664.2,2664.1,29.86187718]
[1752066528738,0.75061,2664.1,2664.0,3.95842]
[1752066528937,2.09111,2664.1,2664.0,30.44242]
[1752066529143,0.75064,2664.0,2663.9,0.75065]
[1752066529441,0.7507,2663.9,2663.8,0.75068]
[1752066529636,0.7507,2663.9,2663.7,32.95938718]
[1752066529637,0.7507,2663.8,2663.7,3.2078]
[1752066529836,0.75072,2663.7,2663.6,26.47963306]
[1752066530031,0.75072,2663.7,2663.6,0.00563306]
[1752066530637,1.77432,2663.7,2663.6,0.00563306]
[1752066531131,0.75072,2663.7,2663.6,0.00563306]
[1752066531744,1.77432,2663.7,2663.6,0.00563306]
[1752066532243,2.44152,2663.7,2663.6,0.00563306]
[1752066532939,3.06472,2663.7,2663.6,0.00563306]
[1752066533138,4.4714508,2663.7,2663.6,0.00563306]
[1752066535833,3.06472,2663.7,2663.6,0.00563306]
[1752066539340,3.06472,2663.7,2663.3,2.61628718]
[1752066539341,0.75081,2663.4,2663.3,2.61628718]
[1752066539540,1.37401,2663.4,2663.3,3.30358718]
[1752066540142,1.37401,2663.4,2663.3,2.61628718]
[1752066540342,1.37401,2663.4,2663.3,3.36712718]
[1752066540542,1.37401,2663.4,2663.3,3.30358718]
[1752066540945,1.37401,2663.4,2663.3,2.61628718]
[1752066541342,1.37401,2663.4,2663.3,3.30358718]
[1752066541535,1.37401,2663.4,2663.3,2.61628718]
[1752066541742,0.75084,2663.3,2663.2,26.405]
[1752066542040,2.39764,2663.3,2663.2,0.6873]
[1752066542241,2.39764,2663.3,2662.8,4.8825]
[1752066542242,0.75092,2663.0,2662.9,0.75094]
[1752066542437,0.75092,2663.0,2662.9,27.81424]
[1752066542641,0.75092,2663.0,2662.9,27.81724]
[1752066542838,0.6232,2663.0,2662.8,3.8809]
[1752066543144,0.75112,2662.3,2662.2,3.2078]
[1752066543446,0.75115,2662.2,2662.1,0.6262]
[1752066543642,0.75115,2662.2,2662.1,1.37738]
[1752066543841,0.75115,2662.2,2662.1,2.06468]
[1752066544048,0.75115,2662.2,2662.1,1.3135]
[1752066544241,0.75114,2662.3,2662.1,1.3135]
[1752066544446,0.75114,2662.3,2662.2,0.75114]
[1752066544641,0.75112,2662.3,2662.2,0.6873]
[1752066544844,0.00563306,2662.5,2662.4,0.75109]
[1752066545039,0.00563306,2662.5,2662.4,36.44827718]
[1752066546049,0.00563306,2662.5,2662.4,10.05627718]
[1752066546245,1.37989306,2662.5,2662.4,29.69458718]
[1752066546445,1.37989306,2662.5,2662.4,3.30358718]
[1752066546645,1.37989306,2662.5,2662.4,0.6873]
[1752066548742,0.75669306,2662.5,2662.4,0.6873]
[1752066548943,1.37989306,2662.5,2662.4,0.6873]
[1752066549250,0.00563306,2662.5,2662.4,1.43839]
[1752066550151,0.62883306,2662.5,2662.4,30.42867718]
[1752066550350,0.62883306,2662.5,2662.4,4.05467718]
[1752066550550,0.62883306,2662.5,2662.4,30.42567718]
[1752066551247,0.62883306,2662.5,2662.4,35.42567718]
[1752066551447,0.75088,2663.2,2663.1,0.75089]
[1752066551648,0.75086,2663.3,2663.2,0.75086]
[1752066551847,0.75086,2663.3,2662.8,31.44824]
[1752066551848,2.65216,2663.3,2663.1,2.61628718]
[1752066552050,2.65216,2663.3,2663.2,0.75086]
[1752066552252,2.02896,2663.3,2663.2,0.75086]
[1752066552446,2.65216,2663.3,2663.2,0.6873]
[1752066552644,0.75086,2663.2,2663.1,3.36715718]
[1752066552845,2.65216,2663.3,2663.2,1.43816]
[1752066553154,1.9013,2663.3,2663.2,1.43816]
[1752066553454,1.3964,2663.5,2663.4,0.75081]
[1752066553646,2.0196,2663.5,2663.4,0.75081]
[1752066553847,1.2688,2663.5,2663.4,4.05439718]
[1752066554050,1.2781,2663.8,2663.7,0.75072]
[1752066554343,1.3739,2663.8,2663.7,0.75072]
[1752066554647,0.75062,2664.1,2663.7,4.30518718]
[1752066554848,1.40917594,2664.0,2663.9,0.75067]
[1752066555048,1.40917594,2664.0,2663.9,1.43797]
[1752066555649,0.7505,2664.5,2663.9,4.8967]
[1752066555850,1.40929977,2664.4,2664.3,0.75055]
[1752066556046,3.40029977,2664.4,2664.3,1.43785]
[1752066556451,2.03249977,2664.4,2664.2,0.75056]
[1752066556651,1.3678,2664.3,2664.2,0.75058]
[1752066556851,6.2224,2664.3,2663.9,0.75065]
[1752066557050,1.6822,2664.2,2664.0,0.75063]
[1752066557248,1.9336,2664.1,2664.0,0.75063]
[1752066558447,1.9336,2664.1,2664.0,1.43793]
[1752066558854,1.9336,2664.1,2664.0,0.75063]
[1752066559056,1.9336,2664.1,2664.0,1.43793]
[1752066559255,1.9336,2664.1,2664.0,0.75063]
[1752066560053,3.66671,2664.1,2664.0,0.75063]
[1752066560256,0.75064,2664.0,2663.9,0.75065]
[1752066560449,0.75064,2664.0,2663.8,0.00563306]
[1752066560450,0.75067,2663.9,2663.8,0.00563306]
[1752066560747,1.40087,2663.9,2663.8,0.00563306]
[1752066560953,2.64437,2663.9,2663.8,0.75633306]
[1752066561155,2.64437,2663.9,2663.8,0.00563306]
[1752066561549,3.62687,2663.9,2663.8,0.00563306]
[1752066562844,7.8762,2663.9,2663.3,0.75081]
[1752066563053,0.75086,2663.3,2663.2,0.75085]
[1752066563255,1.40106,2663.3,2663.2,0.75085]
[1752066563445,1.40106,2663.3,2662.9,0.75093]
[1752066563446,0.75093,2663.0,2662.9,0.75093]
[1752066563651,0.75097,2662.9,2662.8,0.75097]
[1752066563852,0.75099,2662.8,2662.7,0.75099]
[1752066564052,0.75104,2662.6,2662.5,0.75106]
[1752066564255,0.75101,2662.7,2662.6,0.75103]
[1752066564757,2.3837,2662.8,2662.6,0.75103]
[1752066564954,1.6327,2662.8,2662.3,3.2078]
[1752066565152,0.75106,2662.6,2662.4,0.75108]
[1752066565457,0.75106,2662.6,2662.1,2.61628718]
[1752066565458,0.75102,2662.7,2662.6,0.75103]
[1752066565955,2.38369,2662.8,2662.6,0.75103]
[1752066566151,1.292,2662.7,2662.6,0.75103]
[1752066566352,1.292,2662.7,2662.6,1.37963]
[1752066566749,1.292,2662.7,2662.6,0.75103]
[1752066566953,1.292,2662.7,2662.6,1.37963]
[1752066567355,0.00563306,2662.9,2662.6,3.8364]
[1752066567658,0.00563306,2662.9,2662.8,3.36726718]
[1752066567954,3.2078,2663.2,2662.8,3.36726718]
[1752066568158,3.2078,2663.2,2662.8,1.267]
[1752066568358,3.2078,2663.2,2663.1,0.75089]
[1752066568956,3.95866,2663.2,2663.1,0.75089]
[1752066569252,0.6181,2663.5,2663.4,0.75081]
[1752066569460,2.61848,2663.5,2663.3,0.75082]
[1752066569659,1.8677,2663.5,2663.4,0.75081]
[1752066570347,3.26868,2663.5,2663.4,0.75081]
[1752066570553,3.26869,2663.5,2663.1,2.61628718]
[1752066570852,1.41075993,2663.4,2662.6,3.2078]
[1752066571052,0.75099,2662.8,2662.7,0.751]
[1752066571456,0.75097,2662.9,2662.7,0.751]
[1752066571658,1.2496,2662.8,2662.7,0.751]
[1752066572059,0.75095,2663.0,2662.6,2.61628718]
[1752066572357,1.2496,2663.1,2662.6,2.61628718]
[1752066572762,0.75097,2662.9,2662.8,0.75098]
[1752066573059,0.75094,2663.0,2662.9,0.75094]
[1752066573359,0.75096,2662.9,2662.8,0.75095]
[1752066575254,1.40116,2662.9,2662.8,1.37955]
[1752066575456,0.75098,2662.8,2662.7,3.9588]
[1752066575655,0.75098,2662.8,2662.7,4.5874]
[1752066575856,0.75094,2663.0,2662.9,0.75095]
[1752066576056,1.40114,2663.0,2662.9,1.37955]
[1752066576255,1.40114,2663.0,2662.9,0.75095]
[1752066576452,1.6327,2663.0,2662.7,3.2078]
[1752066576661,0.75098,2662.8,2662.7,3.2078]
[1752066576858,0.75103,2662.7,2662.6,0.75101]
[1752066577056,1.87761,2662.6,2662.2,3.2078]
[1752066577256,0.75112,2662.4,2662.3,0.7511]
[1752066577659,0.75116,2662.2,2662.1,0.75114]
[1752066577853,0.75116,2662.2,2661.8,3.2078]
[1752066577854,0.75119,2662.1,2662.0,0.75118]
[1752066578055,1.3461,2662.1,2662.0,0.75118]
[1752066578561,0.75112,2662.4,2662.3,0.75111]
[1752066579359,0.75108,2662.5,2662.4,0.75107]
[1752066579557,1.3066,2662.5,2662.4,0.75107]
[1752066579862,3.95886,2662.6,2662.5,0.75106]
[1752066580064,0.75107,2662.5,2662.4,0.75107]
[1752066580465,2.05767,2662.5,2662.4,0.75107]
[1752066580764,1.3066,2662.5,2662.4,0.75107]
[1752066582864,1.9568,2662.5,2662.4,0.75107]
[1752066583165,2.70786,2662.5,2662.4,0.75107]
[1752066583360,1.9568,2662.5,2662.4,0.75107]
[1752066583864,1.9568,2662.5,2662.4,1.37967]
[1752066584656,2.70786,2662.5,2662.4,1.37967]
[1752066584861,1.9568,2662.5,2662.4,0.75107]
[1752066585262,2.70786,2662.5,2662.4,0.75107]
[1752066585862,0.75123,2662.0,2661.9,0.75121]
[1752066586060,0.75126,2661.9,2661.8,0.75125]
[1752066586362,0.75126,2661.9,2661.8,1.37985]
[1752066586363,2.07876,2661.9,2661.8,1.37985]
[1752066586762,2.07876,2661.9,2661.8,0.6286]
[1752066586966,0.75126,2661.9,2661.8,1.37986]
[1752066588166,0.75118,2662.1,2662.0,0.75118]
[1752066588369,1.3275,2662.2,2662.1,0.75118]
[1752066588669,4.60592,2662.3,2662.2,0.75115]
[1752066588868,4.505,2662.3,2661.7,5.08602]
[1752066589167,0.75121,2662.1,2662.0,0.75118]
[1752066589669,1.40141,2662.1,2662.0,0.75118]
[1752066591671,1.40138,2662.1,2662.0,0.75118]
[1752066592172,1.40138,2662.1,2662.0,1.37978]
[1752066592366,2.09405,2662.2,2662.1,0.75118]
[1752066592572,2.73365,2662.2,2662.1,1.37968]
[1752066593075,0.75111,2662.4,2662.3,0.75109]
[1752066593268,2.81220223,2662.4,2662.3,0.75109]
[1752066593466,4.07080223,2662.4,2662.3,0.75109]
[1752066594070,3.31969223,2662.4,2662.3,0.75109]
[1752066594267,3.2078,2662.6,2662.5,0.75106]
[1752066594472,3.2078,2662.6,2662.5,1.37956]
[1752066595174,3.8474,2662.6,2662.5,1.37956]
[1752066596670,4.5303,2662.9,2662.8,0.75098]
[1752066596869,1.42279224,2662.9,2662.8,1.37948]
[1752066597268,2.06239224,2662.9,2662.8,1.37948]
[1752066597870,3.01859224,2662.9,2662.8,0.75098]
[1752066598072,3.41289224,2662.9,2662.8,0.75098]
[1752066598271,3.41289224,2662.9,2662.8,1.37948]
[1752066598469,1.9901,2662.9,2662.8,1.37948]
[1752066598773,2.74105,2662.9,2662.8,1.37948]
[1752066598973,1.9901,2662.9,2662.8,1.37948]
[1752066599175,2.74105,2662.9,2662.8,1.37948]
[1752066599470,4.16230246,2662.9,2662.8,0.6285]
[1752066599872,4.16230246,2662.9,2662.8,1.37948]
[1752066600072,0.75101,2662.8,2662.6,3.2078]
[1752066600273,0.6396,2662.8,2662.6,3.95881]
[1752066600472,0.75101,2662.7,2662.6,3.95881]
[1752066600676,1.39061,2662.7,2662.6,4.58731]
[1752066601072,1.39061,2662.7,2662.6,0.6285]
[1752066601369,0.75103,2662.6,2662.5,0.75105]
[1752066601565,0.75103,2662.6,2662.5,1.37955]
[1752066601771,1.39063,2662.6,2662.5,1.37955]
[1752066602173,0.75103,2662.7,2662.6,0.75102]
[1752066602373,1.39063,2662.7,2662.6,1.37952]
[1752066602969,0.75101,2662.7,2662.6,1.37952]
[1752066603170,1.39061,2662.7,2662.6,1.37952]
[1752066603373,2.00369,2662.8,2662.7,0.75101]
[1752066603665,2.64329,2662.8,2662.7,0.75101]
[1752066603970,1.8923,2662.8,2662.6,0.75101]
[1752066604174,2.64328,2662.8,2662.7,1.37951]
[1752066604375,2.64328,2662.8,2662.7,0.6285]
[1752066604974,2.64328,2662.8,2662.7,1.37951]
[1752066605271,7.93378,2662.8,2662.1,3.2078]
[1752066605473,0.75111,2662.4,2662.3,0.75108]
[1752066605677,1.39071,2662.4,2662.3,1.37958]
[1752066606071,2.08436,2662.6,2662.5,0.75106]
[1752066606278,0.6435,2663.0,2662.5,3.46325]
[1752066606575,3.50518931,2662.9,2662.8,0.75095]
[1752066606767,4.14478931,2662.9,2662.8,1.37945]
[1752066606967,2.17188931,2662.9,2662.8,1.37945]
[1752066607167,1.42092931,2662.9,2662.8,1.37945]
[1752066607368,2.81147931,2662.9,2662.8,1.37945]
[1752066607574,1.42092931,2662.9,2662.8,5.54435]
[1752066607773,2.08418,2663.2,2663.1,0.75089]
[1752066607972,2.08418,2663.2,2663.1,1.37939]
[1752066607973,4.14443481,2663.2,2663.1,1.37939]
[1752066608173,1.42065481,2663.2,2663.1,1.37939]
[1752066608374,2.06025481,2663.2,2663.1,1.37939]
[1752066608578,0.75085,2663.3,2663.2,0.75087]
[1752066608879,2.81076968,2663.3,2663.2,1.37937]
[1752066609070,2.05991968,2663.3,2663.2,1.37937]
[1752066609275,0.75082,2663.4,2663.3,0.75083]
[1752066609476,0.6396,2663.4,2663.3,0.6285]
[1752066610179,0.6396,2663.4,2663.3,1.37934]
[1752066610373,1.39041,2663.4,2663.3,1.37934]
[1752066610569,0.6396,2663.4,2663.3,1.37934]
[1752066610772,0.75091,2663.1,2663.0,0.7509]
[1752066610976,2.34671,2663.1,2663.0,0.7509]
[1752066611374,0.6396,2663.1,2663.0,1.3794]
[1752066611576,1.39049,2663.1,2663.0,0.7509]
[1752066611778,2.68369,2663.1,2663.0,0.6285]
[1752066611976,1.9328,2663.1,2662.9,0.75093]
[1752066612178,0.75094,2663.0,2662.9,0.75093]
[1752066612479,2.72114,2663.0,2662.9,0.75093]
[1752066612676,0.75097,2662.9,2662.8,0.75097]
[1752066612975,1.9702,2662.9,2662.8,1.37948]
[1752066613482,1.3306,2662.9,2662.8,1.37948]
[1752066613682,0.6396,2662.9,2662.8,1.37948]
[1752066613883,0.75091,2663.1,2663.0,0.75092]
[1752066614178,1.3306,2663.2,2663.1,0.75089]
[1752066614380,0.75074,2663.7,2663.6,0.75074]
[1752066614574,1.39034,2663.7,2663.6,0.75074]
[1752066614778,1.9702,2663.7,2663.6,1.37924]
[1752066615279,2.72092,2663.7,2663.6,0.6285]
[1752066615478,2.72092,2663.7,2663.6,1.37925]
[1752066615683,1.9702,2663.7,2663.6,1.37925]
[1752066615884,1.3306,2663.7,2663.6,1.37925]
[1752066616184,1.6011,2664.0,2663.9,0.75067]
[1752066616385,2.03515,2664.0,2663.9,1.37917]
[1752066616574,3.30075,2664.0,2663.9,0.75067]
[1752066616978,2.5501,2664.0,2663.9,0.75067]
[1752066617181,4.25694,2664.0,2663.9,0.75067]
[1752066617378,0.75069,2663.9,2663.8,0.75068]
[1752066617583,2.65589,2663.9,2663.8,0.75068]
[1752066617782,1.9052,2663.9,2663.8,0.75068]
[1752066617978,1.9052,2663.9,2663.8,1.37918]
[1752066618180,2.65587,2663.9,2663.8,0.75068]